fUSD/lending_fUSD_20240105
["ID","MTS","AMOUNT","RATE_DAILY","PERIOD"]
[310278054,1704459043125,-420.77991613,0.00023,2]
[310278055,1704459043137,-7725.39317025,0.00023,2]
[310278056,1704459043149,-12105.79226862,0.00023,2]
[310278057,1704459043162,-4376.30088657,0.00023,2]
[310278058,1704459043174,-3689.03800843,0.00023,2]
[310278059,1704459043297,-225.52101914,0.00022812,2]
[310278060,1704459043307,-155.0,0.00022812,2]
[310278061,1704459043318,-573.66482822,0.00022813,2]
[310278062,1704459043332,-41.0503102,0.00023,2]
[310278063,1704459043349,-500.0,0.00023,2]
[310278064,1704459043389,-407.122597,0.00023,2]
[310278065,1704459043401,-3315.53537595,0.00023,2]
[310278067,1704459043413,-1504.36617907,0.00023,2]
[310278069,1704459043425,-1474.5827536,0.00023,2]
[310278092,1704459043553,-2456.9579334,0.00023,2]
[310278094,1704459043565,-17543.47061946,0.00023,2]
[310278097,1704459043577,-22518.24227695,0.00023,2]
[310278099,1704459043589,-3891.99660597,0.00023,2]
[310278101,1704459043603,-4672.57898277,0.00023,2]
[310278104,1704459043614,-3569.46248583,0.00023,2]
[310278106,1704459043627,-13982.7120231,0.00023,2]
[310278108,1704459043639,-6199.74965673,0.00023,2]
[310278110,1704459043651,-338.89347841,0.00023,2]
[310278113,1704459043663,-2493.21519858,0.00023,2]
[310278115,1704459043675,-442.56,0.00023,2]
[310278117,1704459043687,-424.33,0.00023,2]
[310278119,1704459043698,-359.971001,0.00023,2]
[310278123,1704459043727,-10800.0,0.00023,2]
[310278125,1704459043740,-972.47056275,0.00023,2]
[310278129,1704459043771,-1213.0333137,0.00023,2]
[310278131,1704459043782,-2581.22148116,0.00023,2]
[310278134,1704459043793,-2100.0,0.00023,2]
[310278136,1704459043805,-12318.8409709,0.00023,2]
[310278138,1704459043816,-315.35737167,0.00023,2]
[310278140,1704459043828,-5800.57177946,0.00023,2]
[310278143,1704459043839,-360.36585024,0.00023,2]
[310278145,1704459043851,-320.0,0.00023,2]
[310278147,1704459043863,-965.16886545,0.00023,2]
[310278149,1704459043875,-1260.0,0.00023,2]
[310278152,1704459043890,-25573.22,0.00023,2]
[310278155,1704459043910,-293.0,0.00023,2]
[310278157,1704459043921,-2044.80001,0.00023,2]
[310278160,1704459043932,-354.68122052,0.00023,2]
[310278162,1704459043945,-491.95199998,0.00023,2]
[310278165,1704459043960,-3254.05749262,0.00023,2]
[310278168,1704459043984,-321.18769235,0.00023,2]
[310278170,1704459043996,-8198.1545939,0.00023,2]
[310278441,1704459046019,-160.20887857,0.00022812,2]
[310278445,1704459046031,-1851.98145614,0.00022812,2]
[310278448,1704459046040,-155.17020376,0.00022812,2]
[310278451,1704459046050,-1704.56212091,0.00022812,2]
[310278455,1704459046059,-336.69086329,0.00022999,2]
[310278459,1704459046069,-158.58052162,0.00022999,2]
[310278462,1704459046079,-9531.57589726,0.00023,2]
[310278465,1704459046091,-285.975,0.00023,2]
[310278468,1704459046102,-734.02466279,0.00023,2]
[310278472,1704459046113,-2059.66811247,0.00023,2]
[310278475,1704459046125,-1795.26069847,0.00023,2]
[310278479,1704459046136,-287.8145,0.00023,2]
[310278481,1704459046148,-3884.16223265,0.00023,2]
[310278484,1704459046160,-72612.91157249,0.00023,2]
[310278489,1704459046199,-729.0,0.00023,2]
[310278491,1704459046211,-786.19383553,0.00023,2]
[310278493,1704459046222,-4788.45970058,0.00023,2]
[310278495,1704459046234,-413.80023299,0.00023,2]
[310278498,1704459046245,-269.0,0.00023,2]
[310278500,1704459046257,-3618.23728068,0.00023,2]
[310278502,1704459046269,-1307.43185899,0.00023,2]
[310278505,1704459046285,-1550.04806469,0.00023,2]
[310278510,1704459046324,-155.60236669,0.00022999,2]
[310278512,1704459046333,-65099.13493372,0.00023,2]
[310278514,1704459046350,-7905.28182825,0.00023,2]
[310278517,1704459046362,-559.41865538,0.00023,2]
[310278519,1704459046374,-8752.60536458,0.00023,2]
[310278524,1704459046414,-447224.61023811,0.00023,2]
[310278526,1704459046426,-429.34971866,0.00023,2]
[310278528,1704459046437,-766.49480908,0.00023,2]
[310278530,1704459046449,-621.58939941,0.00023,2]
[310278534,1704459046461,-1469.4296755,0.00023,2]
[310278537,1704459046474,-1693.6,0.00023,2]
[310278541,1704459046487,-6783.69537945,0.00023,2]
[310278544,1704459046497,-14959.36590185,0.00023,2]
[310278567,1704459046606,-1200.0,0.00023,2]
[310278571,1704459046618,-7736.85058684,0.00023,2]
[310278574,1704459046630,-420.11600238,0.00023,2]
[310278577,1704459046642,-3150.175028,0.00023,2]
[310278582,1704459046657,-18036.91484633,0.00023,2]
[310279207,1704459052839,446.17403311,0.00020468,2]
[310280142,1704459062159,620.21196217,0.00022078,2]
[310280271,1704459063762,2917.45159608,0.00022078,2]
[310280272,1704459063791,263.85417549,0.00022078,2]
[310280280,1704459144349,1530.34074887,0.00022078,2]
[310280281,1704459157893,172.81,0.00022016,2]
[310280282,1704459161205,235.88,0.00022182,2]
[310280283,1704459161408,235.88,0.00022242,2]
[310280284,1704459161611,235.88,0.00022303,2]
[310280285,1704459161841,235.88,0.00022364,2]
[310280286,1704459162225,235.88,0.00022425,2]
[310280287,1704459162430,235.88,0.00022486,2]
[310280288,1704459167237,967.19,0.00021929,2]
[310280289,1704459226104,156.38,0.00022052,2]
[310280290,1704459226326,156.38,0.00022311,2]
[310280291,1704459247899,244.39,0.00019894,2]
[310280292,1704459248088,244.39,0.00022158,2]
[310280293,1704459324361,155.0,0.00021811,2]
[310280294,1704459349157,282.85255823,0.00022,2]
[310280295,1704459354635,1089.24,0.00021816,2]
[310280296,1704459362715,500.0,0.00021807,2]
[310280297,1704459379806,475.87,0.00021798,2]
[310280298,1704459379951,475.87,0.00021913,2]
[310280299,1704459380186,475.87,0.00022028,2]
[310280300,1704459380357,475.87,0.00022142,2]
[310280301,1704459380762,475.87,0.00022257,2]
[310280302,1704459380978,475.87,0.00022372,2]
[310280303,1704459381462,475.87,0.00022487,2]
[310280304,1704459399475,170.37,0.00021779,2]
[310280305,1704459407973,158.95,0.00022327,2]
[310280306,1704459453860,204.0,0.00021927,2]
[310280307,1704459489072,180.24,0.00021808,2]
[310280308,1704459497654,1979.13,0.00021812,2]
[310280309,1704459511991,209.92,0.00021812,2]
[310280310,1704459547288,175.81,0.00022,2]
[310280312,1704459606476,2038.52,0.00021918,2]
[310280314,1704459674549,109691.18,0.00029,30]
[310280316,1704459682559,165.11,0.00021961,2]
[310280317,1704459682965,165.11,0.00022021,2]
[310280318,1704459683165,165.11,0.00022082,2]
[310280319,1704459683385,165.11,0.00022142,2]
[310280320,1704459683591,165.11,0.00022202,2]
[310280321,1704459683957,165.11,0.00022262,2]
[310280322,1704459684160,165.11,0.00022322,2]
[310280323,1704459684372,165.11,0.00022383,2]
[310280324,1704459684790,165.11,0.00022443,2]
[310280325,1704459687849,154.21,0.00021997,2]
[310280326,1704459701232,12801.2,0.00029,30]
[310280327,1704459720533,172.32,0.00021756,2]
[310280328,1704459788648,902.71,0.00021756,2]
[310280329,1704459801548,219.95,0.00019845,2]
[310280330,1704459801975,219.95,0.00022109,2]
[310280331,1704459807110,370.17576062,0.00022499,2]
[310280332,1704459828896,1654.08515166,0.00022499,2]
[310280333,1704459830339,2313.62459634,0.00022499,2]
[310280334,1704459832271,3037.08558605,0.00022499,2]
[310280335,1704459836415,152.98728631,0.00022401,2]
[310280336,1704459841440,152.98728623,0.00022429,2]
[310280337,1704459846411,152.98728623,0.00022456,2]
[310280338,1704459846842,-310.47062166,0.00022892,3]
[310280339,1704459851516,152.98728623,0.00022484,2]
[310280340,1704459890855,544.62,0.00021688,2]
[310280342,1704459919624,541.73644452,0.00022499,2]
[310280343,1704459936238,195.07,0.00021687,2]
[310280344,1704459944278,2939.6699928,0.00022499,2]
[310280345,1704459972389,832.06,0.00021693,2]
[310280353,1704460078960,12262.29609774,0.00022,2]
[310280354,1704460115573,158.31,0.00021913,2]
[310280355,1704460144057,172.32,0.00021697,2]
[310280356,1704460157549,670.9951114,0.00022499,2]
[310280357,1704460164068,151.35,0.00021871,2]
[310280358,1704460164315,151.35,0.00021975,2]
[310280359,1704460164385,175.81,0.00022,2]
[310280360,1704460164643,151.35,0.00022079,2]
[310280361,1704460164876,151.35,0.00022182,2]
[310280362,1704460165296,151.35,0.00022286,2]
[310280363,1704460165462,175.81,0.00022,2]
[310280364,1704460165506,151.35,0.00022389,2]
[310280365,1704460165719,151.35,0.00022493,2]
[310280380,1704460232166,197.95,0.00019832,2]
[310280381,1704460232180,-1654.08515166,0.000225,2]
[310280382,1704460232190,-152.98728623,0.00022512,2]
[310280383,1704460232199,-152.98728623,0.0002254,2]
[310280384,1704460232209,-152.98728623,0.00022567,2]
[310280385,1704460232219,-156.38,0.0002257,2]
[310280386,1704460232228,-152.98728623,0.00022595,2]
[310280387,1704460232238,-151.35,0.00022597,2]
[310280388,1704460232247,-150.0,0.000226,2]
[310280389,1704460232256,-276.58,0.00022601,2]
[310280390,1704460232266,-4636.42,0.00022601,2]
[310280391,1704460232275,-813.83570342,0.00022601,2]
[310280392,1704460232287,-264.198,0.00022601,2]
[310280393,1704460232299,-350.8128,0.00022601,2]
[310280394,1704460232319,-639.29473813,0.00022601,2]
[310280395,1704460232331,-1334.09167243,0.00022601,2]
[310280396,1704460232343,-561.46022541,0.00022601,2]
[310280397,1704460232382,-507.50742437,0.00022601,2]
[310280398,1704460232393,-849.835,0.00022601,2]
[310280401,1704460232516,-450.0,0.00022601,2]
[310280403,1704460232527,-8824.09813851,0.00022601,2]
[310280406,1704460232539,-6568.09629773,0.00022601,2]
[310280408,1704460232549,-78.71028209,0.00022601,2]
[310280410,1704460232562,-132.57971791,0.00022601,2]
[310280412,1704460232571,-475.87,0.00022601,2]
[310280414,1704460232581,-1903.58,0.00022607,2]
[310280416,1704460232591,-686.02,0.00022607,2]
[310280418,1704460232600,-7960.37,0.00022607,2]
[310280420,1704460232610,-353.99,0.00022607,2]
[310280422,1704460232619,-152.98728623,0.00022623,2]
[310280424,1704460232629,-152.98728623,0.00022651,2]
[310280426,1704460232638,-643.4185131,0.00022666,2]
[310280428,1704460232648,-185.43605405,0.00022666,2]
[310280430,1704460232658,-1272.40788958,0.00022666,2]
[310280432,1704460232667,-340.67194754,0.00022667,2]
[310280434,1704460232677,-2087.1644,0.00022667,2]
[310280436,1704460232686,-437.2662,0.00022668,2]
[310280437,1704460232696,-18582.0995,0.00022668,2]
[310280438,1704460232706,-304.12708178,0.00022668,2]
[310280439,1704460232716,-152.98728623,0.00022678,2]
[310280440,1704460232725,-151.35,0.000227,2]
[310280441,1704460232735,-170.37564968,0.00022701,2]
[310280442,1704460232745,-152.98728623,0.00022706,2]
[310280443,1704460232754,-475.87,0.00022716,2]
[310280444,1704460232764,-152.98728623,0.00022734,2]
[310280445,1704460232773,-902.71,0.00022735,2]
[310280446,1704460232783,-152.98728623,0.00022761,2]
[310280447,1704460232793,-760.18492948,0.00022765,2]
[310280448,1704460232803,-3268.69294566,0.00022765,2]
[310280449,1704460232811,-513.70005074,0.00022766,2]
[310280450,1704460232821,-155.31338264,0.00022766,2]
[310280451,1704460232830,-118706.06082019,0.00022767,2]
[310280452,1704460232840,-25136.5154531,0.00022768,2]
[310280453,1704460232849,-528.86568736,0.00022768,2]
[310280454,1704460232858,-304.12708177,0.00022784,2]
[310280455,1704460232867,-152.98728623,0.00022789,2]
[310280456,1704460232877,-155.18956173,0.000228,2]
[310280457,1704460232887,-151.35,0.00022804,2]
[310280458,1704460232898,-200.0,0.00022816,2]
[310280459,1704460232908,-152.98728623,0.00022817,2]
[310280460,1704460232918,-156.38,0.0002283,2]
[310280461,1704460232927,-475.87,0.00022831,2]
[310280462,1704460232937,-152.98728623,0.00022845,2]
[310280463,1704460232948,-152.98728623,0.00022872,2]
[310280464,1704460232957,-193.819,0.00022892,2]
[310280465,1704460232967,-833.0,0.00022892,2]
[310280466,1704460232976,-1859.411,0.00022892,2]
[310280467,1704460232985,-1254.0,0.00022892,2]
[310280468,1704460232994,-1234.0,0.00022892,2]
[310280469,1704460233003,-1927.0,0.00022892,2]
[310280470,1704460233013,-759.412,0.00022892,2]
[310280471,1704460233023,-506.0,0.00022892,2]
[310280472,1704460233034,-322.52,0.00022892,2]
[310280473,1704460233043,-375.96584725,0.00022898,2]
[310280474,1704460233052,-180.24,0.00022899,2]
[310280475,1704460233063,-3901.6156,0.000229,2]
[310280476,1704460233072,-10921.3155,0.000229,2]
[310280477,1704460233083,-152.98728623,0.000229,2]
[310280478,1704460233093,-199.45923791,0.000229,2]
[310280479,1704460233101,-304.12708177,0.000229,2]
[310280480,1704460233111,-414.60916362,0.000229,2]
[310280481,1704460233120,-151.35,0.00022907,2]
[310280482,1704460233130,-475.87,0.00022946,2]
[310280483,1704460233140,-2266.0,0.0002295,2]
[310280484,1704460233149,-19644.0,0.0002295,2]
[310280485,1704460233158,-7325.0,0.0002295,2]
[310280486,1704460233168,-1026.0,0.0002295,2]
[310280487,1704460233177,-4457.28348199,0.0002299,2]
[310280488,1704460233187,-199.94769981,0.0002299,2]
[310280489,1704460233198,-7626.32945431,0.00022995,2]
[310280490,1704460233211,-3606.08562809,0.00022995,2]
[310280491,1704460233223,-174.34655915,0.00022996,2]
[310280492,1704460233232,-521.37826743,0.00022996,2]
[310280493,1704460233241,-308.62224288,0.00022996,2]
[310280494,1704460233250,-700.29317767,0.00022996,2]
[310280495,1704460233261,-300.07685153,0.00022996,2]
[310280496,1704460233270,-18335.56401719,0.00022997,2]
[310280497,1704460233293,-2217.73124,0.00022997,2]
[310280498,1704460233304,-1269.59395798,0.00022997,2]
[310280499,1704460233332,197.95,0.00022096,2]
[310280507,1704460239339,-650.44883144,0.00022898,2]
[310280508,1704460239349,-31393.03734092,0.00022995,2]
[310280509,1704460239458,-151747.80254245,0.00022995,2]
[310280510,1704460239472,-59575.43611663,0.00022995,2]
[310280511,1704460239482,-11829.30281331,0.00022997,2]
[310280512,1704460239492,-1226.80033537,0.00022998,2]
[310280513,1704460239501,-155.78050515,0.00022998,2]
[310280514,1704460239511,-1394.12984185,0.00022998,2]
[310280515,1704460239521,-10525.07510932,0.00022998,2]
[310280516,1704460239530,-347.7913174,0.00022998,2]
[310280517,1704460239540,-356.82956198,0.00022998,2]
[310280518,1704460239549,-238.33977346,0.00022998,2]
[310280519,1704460239558,-243.75357129,0.00022998,2]
[310280520,1704460239567,-417.14408965,0.00022998,2]
[310280521,1704460239577,-155.0,0.00022998,2]
[310280522,1704460239586,-200.64091498,0.00022998,2]
[310280523,1704460239596,-155.0,0.00022998,2]
[310280524,1704460239605,-155.0,0.00022998,2]
[310280525,1704460239620,-249.79462893,0.00022998,2]
[310280526,1704460239631,-2612.12944822,0.00022998,2]
[310280527,1704460239641,-2457.88198584,0.00022998,2]
[310280528,1704460239651,-204.98770776,0.00022998,2]
[310280529,1704460239661,-243.80387807,0.00022998,2]
[310280530,1704460239670,-156.55992452,0.00022998,2]
[310280531,1704460239681,-15115.08315402,0.00022998,2]
[310280532,1704460239694,-1598.75346604,0.00022998,2]
[310280533,1704460239704,-281.343309,0.00022998,2]
[310280534,1704460239715,-1848.22696457,0.00022998,2]
[310280535,1704460239726,-697.06047486,0.00022998,2]
[310280536,1704460239735,-241.7259282,0.00022998,2]
[310280537,1704460239745,-1042.9001587,0.00022998,2]
[310280538,1704460239755,-308.66623732,0.00022998,2]
[310280539,1704460239765,-2605.87309653,0.00022998,2]
[310280540,1704460239775,-271.40000003,0.00022998,2]
[310280541,1704460239784,-192.29529847,0.00022998,2]
[310280542,1704460239794,-2130.95546807,0.00022998,2]
[310280543,1704460239803,-317.68758824,0.00022998,2]
[310280544,1704460239813,-159.50238733,0.00022998,2]
[310280546,1704460239822,-311.02578415,0.00022998,2]
[310280548,1704460239832,-18956.58157169,0.00022998,2]
[310280550,1704460239841,-5791.32523149,0.00022998,2]
[310280552,1704460239851,-399.98870472,0.00022999,2]
[310280554,1704460239860,-414.52694398,0.00022999,2]
[310280556,1704460239869,-1149.68867926,0.00022999,2]
[310280558,1704460239879,-287.8141388,0.00022999,2]
[310280560,1704460239888,-428.24724263,0.00022999,2]
[310280562,1704460239898,-10504.61910718,0.00022999,2]
[310280564,1704460239908,-168.13226102,0.00022999,2]
[310280566,1704460239917,-155.1762591,0.00022999,2]
[310280568,1704460239927,-77246.53554015,0.00023,2]
[310280571,1704460239940,-863.56873737,0.00023,2]
[310280573,1704460239952,-5331.69861464,0.00023,2]
[310280576,1704460239974,-2694.34729205,0.00023,2]
[310280579,1704460239987,-4213.3,0.00023,2]
[310280581,1704460239999,-892.17585639,0.00023,2]
[310280584,1704460240011,-2900.0,0.00023,2]
[310280586,1704460240022,-2610.74051145,0.00023,2]
[310280591,1704460240067,-6553.0087,0.00023,2]
[310280593,1704460240079,-4073.0204,0.00023,2]
[310280596,1704460240091,-290.08119832,0.00023,2]
[310280598,1704460240103,-3779.24952656,0.00023,2]
[310280601,1704460240130,-997.83561259,0.00023,2]
[310280604,1704460240152,-6424.50229347,0.00023,2]
[310280606,1704460240164,-342449.53926509,0.00023,2]
[310280608,1704460240174,-931.61796289,0.00023,2]
[310280610,1704460240184,-1250.0,0.00023,3]
[310280612,1704460240194,-41139.40216378,0.00023,2]
[310280614,1704460240205,-578914.19288253,0.00023,2]
[310280616,1704460240217,-2317.14819343,0.00023,2]
[310280675,1704460240744,-5063.47704836,0.00023,2]
[310280702,1704460241148,-304.41235436,0.00023,2]
[310280709,1704460241214,-5635.34864153,0.00023,2]
[310280711,1704460241231,-1216.00454997,0.00023,2]
[310280777,1704460241864,-106136.2699238,0.00023,2]
[310280780,1704460241876,-3969.09237031,0.00023,2]
[310280786,1704460241929,-6689.12491664,0.00023,2]
[310280800,1704460242074,-400.0,0.00023,2]
[310280847,1704460243188,-345.8302567,0.00023,2]
[310280848,1704460243199,-331.2,0.00023,2]
[310280849,1704460243214,-649.92022966,0.00023,2]
[310280850,1704460243227,-604.8212046,0.00023,2]
[310280851,1704460243260,-5990.40580094,0.00023,2]
[310280852,1704460243381,-668.90836217,0.00023,2]
[310280853,1704460243393,-9148.38521286,0.00023,2]
[310280854,1704460243406,-263.65882223,0.00023,2]
[310280855,1704460243423,-1672.5661748,0.00023,2]
[310280856,1704460243489,-1155.70071445,0.00023,2]
[310280857,1704460243501,-950.14590883,0.00023,2]
[310280858,1704460243514,-463.51367634,0.00023,2]
[310280917,1704460246211,-1372.14540597,0.00023,2]
[310280937,1704460246271,-3454.38333926,0.00023,2]
[310280942,1704460246283,-716.28058986,0.00023,2]
[310280976,1704460246397,-785.57430074,0.00023,2]
[310280980,1704460246410,-67471.7540406,0.00023,2]
[310280984,1704460246422,-3120.94606476,0.00023,2]
[310280989,1704460246443,-13898.39317815,0.00023,2]
[310280993,1704460246455,-5754.62408953,0.00023,2]
[310280998,1704460246466,-309.24805953,0.00023,2]
[310281003,1704460246479,-18261.06563951,0.00023,2]
[310281009,1704460246511,-1878.84,0.00023,2]
[310281012,1704460246523,-449.59347556,0.00023,2]
[310281017,1704460246538,-340.83662371,0.00023,2]
[310281020,1704460246575,-508.705,0.00023,2]
[310281022,1704460246589,-1068.65290853,0.00023,2]
[310281025,1704460246616,-2907.31285954,0.00023,2]
[310281552,1704460294550,150.1,0.000229,3]
[310281553,1704460318241,166.62,0.00022176,2]
[310281554,1704460365495,272.31,0.0002199,2]
[310281555,1704460375570,319.14112405,0.000229,3]
[310281556,1704460393624,250.87,0.00021922,2]
[310281557,1704460446731,851.88,0.00021931,2]
[310281558,1704460469854,334.35,0.00021922,2]
[310281559,1704460503929,204.0,0.00022388,2]
[310281560,1704460551918,-173.60015912,0.0002273,2]
[310281561,1704460551942,-1654.08515166,0.0002273,2]
[310281562,1704460551966,-166.62,0.00022731,2]
[310281563,1704460551990,-158.34877872,0.000228,2]
[310281564,1704460552013,-484.3459105,0.000228,2]
[310281565,1704460629297,159.45,0.00022082,2]
[310281566,1704460632662,157.19,0.00022153,2]
[310281567,1704460759040,400.97,0.00021926,2]
[310281568,1704460759277,400.97,0.00022041,2]
[310281569,1704460759561,400.97,0.00022156,2]
[310281570,1704460759762,400.97,0.00022272,2]
[310281571,1704460759969,400.97,0.00022387,2]
[310281572,1704460801339,178.15,0.00019966,2]
[310281573,1704460801444,178.15,0.0002223,2]
[310281575,1704460899929,272.31,0.00021901,2]
[310281576,1704460978830,795.08,0.00021895,2]
[310281577,1704460994328,732.52,0.00021897,2]
[310281578,1704460996609,188.0,0.00018432,2]
[310281579,1704461070233,159.45,0.00022061,2]
[310281580,1704461220174,156.38,0.00022132,2]
[310281581,1704461220390,156.38,0.00022479,2]
[310281582,1704461223546,160.33,0.00019996,2]
[310281583,1704461223940,160.33,0.0002226,2]
[310281585,1704461364003,278.72,0.00021892,2]
[310281586,1704461429784,413.98,0.00021882,2]
[310281636,1704461435684,-1342.36270572,0.00022502,2]
[310281637,1704461435697,-311.72244594,0.00022502,2]
[310281638,1704461435707,-172.75471983,0.00022502,2]
[310281639,1704461435717,-365.58961343,0.00022503,2]
[310281640,1704461435731,-35.38038657,0.00022503,2]
[310281641,1704461435740,-303.57190755,0.00022618,2]
[310281642,1704461435762,-97.39809245,0.00022618,2]
[310281643,1704461435771,-158.3487787,0.00022649,2]
[310281644,1704461435784,-111.87568605,0.0002268,2]
[310281645,1704461435814,-46.47309265,0.0002268,2]
[310281646,1704461435825,-158.3487787,0.00022712,2]
[310281647,1704461435835,-400.97,0.00022733,2]
[310281648,1704461435845,-158.3487787,0.00022743,2]
[310281649,1704461435855,-157.19,0.00022749,2]
[310281650,1704461435866,-158.3487787,0.00022775,2]
[310281651,1704461435875,-767.26083885,0.00022799,2]
[310281652,1704461435885,-174.38842159,0.00022799,2]
[310281653,1704461435897,-286.92669191,0.00022799,2]
[310281654,1704461435913,-38.6748865,0.00022799,2]
[310281655,1704461435924,-918.21180462,0.000228,2]
[310281656,1704461436002,-499.89700193,0.000228,2]
[310281657,1704461436013,-158.3487787,0.00022806,2]
[310281658,1704461436023,-300.0,0.00022814,2]
[310281659,1704461436036,-146.36623939,0.00022814,2]
[310281660,1704461436048,-3.63376061,0.00022814,2]
[310281661,1704461436058,-500.0,0.00022815,2]
[310281662,1704461436068,-794.73,0.00022815,2]
[310281664,1704461436078,-133.82459816,0.00022815,2]
[310281666,1704461436090,-366.16540184,0.00022815,2]
[310281668,1704461436100,-576.71,0.00022815,2]
[310281669,1704461436109,-1010.1,0.00022815,2]
[310281671,1704461436119,-500.0,0.00022816,2]
[310281673,1704461436129,-500.0,0.00022816,2]
[310281674,1704461436138,-156.38,0.00022826,2]
[310281676,1704461436148,-158.3487787,0.00022837,2]
[310281678,1704461436158,-400.97,0.00022849,2]
[310281680,1704461436167,-158.3487787,0.00022869,2]
[310281681,1704461436177,-795.08,0.00022873,2]
[310281716,1704461436398,-1205.88104033,0.00022889,2]
[310281740,1704461438356,-1197.93357264,0.00022889,2]
[310281741,1704461438369,-1436.2196002,0.00022889,2]
[310281742,1704461438381,-2062.21623981,0.00022889,2]
[310281743,1704461438410,-1505.52984001,0.00022889,2]
[310281744,1704461438471,-22387.39470701,0.00022889,2]
[310281745,1704461438481,-3098.14539406,0.0002289,2]
[310281746,1704461438491,-314.92829466,0.00022898,2]
[310281747,1704461438501,-1902.45471705,0.00022899,2]
[310281748,1704461438510,-820.23861868,0.00022899,2]
[310281749,1704461438520,-1070.21981672,0.000229,2]
[310281750,1704461438532,-179.27453581,0.000229,2]
[310281751,1704461438548,-158.3487787,0.000229,2]
[310281752,1704461438558,-53310.33,0.000229,2]
[310281753,1704461438568,-203.51667545,0.000229,2]
[310281754,1704461438578,-539.61006327,0.000229,2]
[310281755,1704461438590,-214.20717919,0.000229,2]
[310281756,1704461438599,-495.55646658,0.000229,2]
[310281757,1704461438609,-2334.79,0.000229,2]
[310281758,1704461438622,-400.97,0.00022964,2]
[310281759,1704461438633,-417.95209149,0.00022987,2]
[310281760,1704461438643,-278.72,0.00022987,2]
[310281761,1704461438653,-197.08104222,0.0002299,2]
[310281762,1704461438663,-197.08104222,0.0002299,2]
[310281763,1704461438673,-158.44372652,0.00022995,2]
[310281764,1704461438683,-155.0,0.00022995,2]
[310281765,1704461438693,-1824.08541595,0.00022995,2]
[310281766,1704461438703,-155.41510982,0.00022995,2]
[310281767,1704461438713,-3605.52251831,0.00022995,2]
[310281768,1704461438724,-155.0,0.00022996,2]
[310281769,1704461438735,-212.86350495,0.00022996,2]
[310281770,1704461438745,-155.1313233,0.00022996,2]
[310281771,1704461438754,-249.39139602,0.00022996,2]
[310281772,1704461438764,-2582.84318568,0.00022996,2]
[310281774,1704461438773,-155.0,0.00022996,2]
[310281776,1704461438785,-369.06498829,0.00022996,2]
[310281778,1704461438795,-160.05593525,0.00022996,2]
[310281780,1704461438804,-155.80948777,0.00022996,2]
[310281782,1704461438814,-297.09968763,0.00022996,2]
[310281784,1704461438824,-2616.62705344,0.00022996,2]
[310281786,1704461438833,-324.34951991,0.00022996,2]
[310281788,1704461438842,-155.55011854,0.00022996,2]
[310281790,1704461438852,-223.24124902,0.00022996,2]
[310281792,1704461438862,-1765.37906595,0.00022996,2]
[310281794,1704461438872,-188.00694415,0.00022996,2]
[310281796,1704461438882,-243.05470556,0.00022996,2]
[310281798,1704461438892,-3023.42825364,0.00022997,2]
[310281800,1704461438902,-176.47406261,0.00022997,2]
[310281802,1704461438912,-234.34924419,0.00022997,2]
[310281804,1704461438923,-157.16246247,0.00022997,2]
[310281806,1704461438933,-155.0,0.00022997,2]
[310281808,1704461438944,-141.56148638,0.00022997,2]
[310281811,1704461438962,-389.42096657,0.00022997,2]
[310281813,1704461438973,-155.49445282,0.00022997,2]
[310281815,1704461438984,-279.68298451,0.00022997,2]
[310281817,1704461438994,-2770.37255743,0.00022997,2]
[310281820,1704461439005,-805.62368405,0.00022997,2]
[310281822,1704461439015,-155.0,0.00022997,2]